Cogmind - Beta 10 X1 @@@ ROGUE MODE // 2020.06.02 @ 16:51:13 Player: Decinym Result: Destroyed by P-80 Master with Gamma Rifle Performance ------------- Evolutions (7) 3500 Regions Visited (25) 5000 Robots Destroyed (270) 1350 Value Destroyed (10933) 10933 Prototype IDs (69) 1380 Alien Tech Used (2) 400 Bonus (11848) 11848 TOTAL SCORE: 34411 Bonus ------- High Alert Combat Kills 1076 Follower Combat Kills 3367 Network Hubs Disabled 400 Met Imprinter 300 Destroyed Z-Imprinter 1000 Triggered Deep Caves Wall 1000 Exposed GOLEM Chamber 3500 Met Warlord at Base 500 MAIN.C Attacked Warlord 500 Warlord Defense Kill 706 Built Enhanced Grunts 300 A7 Reached Mainframe 300 Met R17 at Cetus 500 Friendly Fire -1601 Cogmind --------- Core Integrity 0/1300 Matter 136/300 Energy 20/100 System Corruption 5% Temperature Cool (1) Movement Core (50) Location -3/Quarantine Parts ------- > --- POWER (2) -------- (None) > --- PROPULSION (4) --- (None) > --- UTILITY (12) ----- (None) > --- WEAPON (3) ------- (None) > --- INVENTORY (4) ---- Improved Gyrokinetic Inverter Advanced Remote Datajack Peak State ------------ > --- POWER ------------ Vortex Chain Reactor > --- PROPULSION ------- Enhanced Biometal Leg Nuclear Pulse Array > --- UTILITY ---------- Wardrone Bay > --- WEAPON ----------- Assembled Focal Cannon Assembled Focal Cannon > --- INVENTORY -------- (None) [Rating: 189] Favorites ----------- Power Assembled Flux Generator Engine Improved Deuterium Engine Reactor Assembled Flux Generator Propulsion Assembled Alloy Leg Treads Light Treads Leg Assembled Alloy Leg Wheel Wheel Hover Unit Linear Gravjet Flight Unit Impulse Thruster Array Utility Large Storage Unit Device GOLEM Unit Storage Large Storage Unit Processor Advanced Targeting Computer Hackware Hacking Suite Protection Centrium Medium Armor Plating Artifact Stasis Generator Weapon Assembled Focal Cannon Energy Gun Cooled Pulse Rifle Energy Cannon Assembled Focal Cannon Ballistic Gun Gauss Rifle Ballistic Cannon Linear Accelerator Launcher Advanced EMP Blaster Special Weapon Remote Datajack Slashing Weapon Greatsword Build | -11 -10 -10 -10 -9 -8 -7 -7 -7 -7 -6 -6 -6 -6 -6 -6 -5 -5 -5 -5 -4 -4 -4 -4 -3 -3 ------- Run | Scr Mat Min Exi Min Mat Fac Low Zio Dee Pro Fac Ext Cet Arc Hub Fac Upp Upp War Pro Fac Was Fac Res Qua Slots Evolved 14 | . . . . . 4 2 . . . . 2 . . . . 2 . . . . 2 . . 2 . Power 1 | . . . . . . . . . . . 1 . . . . . . . . . . . . . . Propulsion 2 | . . . . . 1 . . . . . . . . . . . . . . . 1 . . . . Utility 10 | . . . . . 2 2 . . . . 1 . . . . 2 . . . . 1 . . 2 . Weapon 1 | . . . . . 1 . . . . . . . . . . . . . . . . . . . . Parts Attached 190 | . 1 8 1 . 20 17 3 6 32 8 5 2 2 1 1 18 6 9 8 . 3 3 11 18 7 Power 12 | . . . . . 1 1 . . 1 2 2 . . . . . . . 1 . . . 1 3 . Engine 4 | . . . . . 1 1 . . . . 2 . . . . . . . . . . . . . . Core . | . . . . . . . . . . . . . . . . . . . . . . . . . . Reactor 8 | . . . . . . . . . 1 2 . . . . . . . . 1 . . . 1 3 . Propulsion 35 | . . 1 . . 3 4 2 . 3 . 1 1 1 . 1 3 2 1 1 . 1 1 2 5 2 Treads 4 | . . . . . 3 1 . . . . . . . . . . . . . . . . . . . Leg 18 | . . 1 . . . 3 2 . 3 . 1 1 1 . 1 2 1 . 1 . 1 . . . . Wheel 2 | . . . . . . . . . . . . . . . . . 1 1 . . . . . . . Hover 4 | . . . . . . . . . . . . . . . . . . . . . . . 2 2 . Flight 7 | . . . . . . . . . . . . . . . . 1 . . . . . 1 . 3 2 Utility 69 | . 1 . 1 . 9 6 . 2 13 . 2 1 . 1 . 6 . 2 6 . 1 2 7 6 3 Device 30 | . . . . . 3 2 . 1 3 . 1 . . 1 . 3 . 1 4 . 1 1 6 2 1 Storage 18 | . 1 . 1 . 3 1 . . 6 . 1 1 . . . 2 . . 1 . . 1 . . . Processor 2 | . . . . . . . . . . . . . . . . . . . . . . . . 1 1 Hackware 3 | . . . . . . . . . . . . . . . . . . . . . . . 1 2 . Protection 15 | . . . . . 3 3 . 1 4 . . . . . . 1 . 1 1 . . . . 1 . Artifact 1 | . . . . . . . . . . . . . . . . . . . . . . . . . 1 Weapon 74 | . . 7 . . 7 6 1 4 15 6 . . 1 . . 9 4 6 . . 1 . 1 4 2 Energy Gun 16 | . . . . . 5 3 1 1 3 . . . 1 . . . . . . . . . . 2 . Energy Cannon 29 | . . 2 . . 1 2 . 1 9 1 . . . . . 7 3 3 . . . . . . . Ballistic Gun 6 | . . 3 . . . . . . . 2 . . . . . . . . . . . . . 1 . Ballistic Cannon 2 | . . . . . . . . . . 1 . . . . . . . . . . . . . . 1 Launcher 15 | . . 1 . . 1 1 . 1 3 2 . . . . . 2 1 3 . . . . . . . Special Weapon 3 | . . . . . . . . . . . . . . . . . . . . . 1 . 1 1 . Impact Weapon . | . . . . . . . . . . . . . . . . . . . . . . . . . . Slashing Weapon 3 | . . 1 . . . . . 1 . . . . . . . . . . . . . . . . 1 Piercing Weapon . | . . . . . . . . . . . . . . . . . . . . . . . . . . Special Melee Weapon . | . . . . . . . . . . . . . . . . . . . . . . . . . . Unidentified Prototypes 31 | . . . . . 2 3 . 2 9 . . . 1 1 . 5 . . 4 . . 1 . 1 2 Parts Lost 52 | . . . . . 3 . 1 . 2 6 4 . . . 3 2 1 3 . . . 3 2 11 11 Power 5 | . . . . . . . . . . 2 . . . . . . . . . . . . . 1 2 Propulsion 13 | . . . . . 1 . . . . . 2 . . . 1 1 . . . . . 2 1 1 4 Utility 17 | . . . . . 1 . . . 2 . . . . . . . 1 1 . . . 1 1 7 3 Weapon 17 | . . . . . 1 . 1 . . 4 2 . . . 2 1 . 2 . . . . . 2 2 Highest Loss Streak 10 | . . . . . 3 . 1 . 2 5 2 . . . 2 1 1 2 . . . 3 2 7 10 Average Slot Usage (%) 87 | . 97 100 100 100 95 91 91 91 88 98 84 85 82 85 85 86 87 87 90 94 90 29 27 44 29 Engine 3 | . 14 14 14 14 9 7 7 7 3 . 1 . . . . . . . . . . . . . . Reactor 3 | . . . . . . . . . 3 6 5 6 6 6 6 5 5 5 5 5 5 1 2 3 7 Treads 2 | . . . . . 23 12 . . . . . . . . . . . . . . . . . . . Leg 17 | . 28 28 28 28 2 10 23 23 22 23 19 20 15 20 19 16 13 11 14 17 21 5 . . . Device 11 | . . . . . 8 7 7 7 9 15 13 13 13 12 13 17 16 18 17 17 16 5 14 8 3 Storage 22 | . 25 28 28 28 18 17 23 23 19 30 25 26 26 26 26 23 23 23 25 29 26 7 . . . Protection 4 | . . . . . 8 12 7 7 6 . . . . . . 4 5 3 5 5 5 . . 2 . Energy Gun 2 | . . . . . 10 2 9 13 2 . . . 5 6 4 . . . . . . . . 2 . Energy Cannon 13 | . . 1 28 28 8 11 7 7 17 10 13 19 13 13 14 16 16 15 17 17 12 3 . . . Ballistic Gun 1 | . 28 23 . . . . . . . 9 3 . . . . . . . . . . . . 1 . Launcher 1 | . . 2 . . 6 7 4 . . . . . . . . . . . . . . . . . . Naked Turns 10 | . . . . . . . . . . . . . . . . . . . . . . . . . 10 Heaviest Build 174 | 12 28 31 35 35 64 95 90 88 88 111 128 128 128 118 128 140 147 159 174 174 174 163 28 63 52 Greatest Support 120 | 20 20 20 20 20 60 60 50 50 98 98 98 85 85 85 88 98 85 20 100 90 120 120 29 72 54 Greatest Overweight (x) 7 | . 1 1 1 1 3 1 1 1 1 1 2 1 1 1 2 1 7 7 7 1 1 3 . . 1 Average Overweight (x) 1 | . . 1 1 1 . 1 1 1 . . . 1 1 1 1 . 5 7 4 1 1 . . . . Largest Inventory Capacity 24 | . 12 12 14 14 20 20 20 20 20 20 20 20 20 20 20 24 24 24 24 24 24 24 4 4 4 Average Capacity 18 | . 11 12 13 14 14 17 20 20 16 20 19 20 20 20 20 20 24 24 24 24 24 9 4 4 4 Most Carried 24 | . 10 12 14 14 20 20 20 20 20 20 20 20 20 20 20 24 24 24 24 24 24 23 4 4 4 Average Carried 17 | . 8 11 13 13 14 17 19 19 14 17 19 19 19 20 20 19 23 22 23 24 22 8 4 3 3 Final Capacity 24 | 6 12 12 14 14 20 20 20 20 20 20 20 20 20 20 20 24 24 24 24 24 24 4 4 4 4 Final Carried 24 | 6 10 12 14 14 20 20 20 20 20 20 20 20 20 20 20 24 24 24 24 24 23 4 4 4 2 Class Distribution -------------------- 22% | Hauler-Golem 19% | Mutant 16% | Hauler-Mutant 15% | Hauler-Tank 7% | Scavenger-Mutant 4% | Hauler-Gunner Dominant Class ---------------- Mutant | -10/Materials Mutant | -10/Mines Mutant | -10/Exiles Mutant | -9/Mines Scavenger-Mutant | -8/Materials Scavenger-Mutant | -7/Factory Hauler-Mutant | -7/Lower Caves Hauler-Tank | -7/Zion Mutant | -7/Deep Caves Scavenger-Gunner | -6/Proximity Caves Hauler-Golem | -6/Factory Hauler-Golem | -6/Extension Commander-Mutant | -6/Cetus Hauler-Golem | -6/Archives Hauler-Golem | -6/Hub_04(d) Hauler-Golem | -5/Factory Hauler-Golem | -5/Upper Caves Hauler-Golem | -5/Upper Caves Hauler-Golem | -5/Warlord Hauler-Tank | -4/Proximity Caves Hauler-Tank | -4/Factory Mutant | -4/Waste Mutant | -4/Factory Mutant | -3/Research Mutant | -3/Quarantine Resources | -11 -10 -10 -10 -9 -8 -7 -7 -7 -7 -6 -6 -6 -6 -6 -6 -5 -5 -5 -5 -4 -4 -4 -4 -3 -3 ----------- Run | Scr Mat Min Exi Min Mat Fac Low Zio Dee Pro Fac Ext Cet Arc Hub Fac Upp Upp War Pro Fac Was Fac Res Qua Matter Collected 2715 | 200 26 164 . 10 211 185 20 54 433 225 111 109 28 5 48 218 92 273 117 . . 5 . 181 . Remotely . | . . . . . . . . . . . . . . . . . . . . . . . . . . Salvage Created 11969 | . 97 84 . 32 349 956 278 . 1048 542 450 1579 167 84 857 2136 607 965 289 961 . 329 . 129 30 Parts 496 | . 6 4 . 3 22 51 17 . 29 22 26 68 12 4 42 81 17 26 3 49 . 6 . 6 2 Haulers Intercepted 6 | . 1 . . . . 1 . . . . . 1 . . 2 1 . . . . . . . . . Recyclers Shooed 1 | . . . . . . . . . . . . . . . . 1 . . . . . . . . . Parts Field Recycled . | . . . . . . . . . . . . . . . . . . . . . . . . . . Retrieved Matter . | . . . . . . . . . . . . . . . . . . . . . . . . . . Parts Self-Destructed 201 | . . . . . . . 22 . . 15 . . . . . . 12 18 83 51 . . . . . Prevented 28 | . . . . . . . 1 . . 3 . . . . . . 5 8 11 . . . . . . Kills | -11 -10 -10 -10 -9 -8 -7 -7 -7 -7 -6 -6 -6 -6 -6 -6 -5 -5 -5 -5 -4 -4 -4 -4 -3 -3 ------- Run | Scr Mat Min Exi Min Mat Fac Low Zio Dee Pro Fac Ext Cet Arc Hub Fac Upp Upp War Pro Fac Was Fac Res Qua Combat Hostiles Destroyed 224 | . 1 2 . 1 6 20 6 . 44 19 7 20 4 1 4 28 9 21 5 20 . 1 . 4 1 Melee 1 | . . . . . . . . . . . . . . . . . . . . . . . . . 1 Guns 17 | . 1 1 . . 2 3 4 . 1 1 . . . . . . . . . . . . . 4 . Cannons 129 | . . . . 1 2 13 1 . 3 9 7 20 4 1 4 21 7 10 5 20 . 1 . . . AOE 65 | . . 1 . . 2 4 1 . 35 8 . . . . . 4 1 9 . . . . . . . Classes Destroyed 20 | . 3 1 . . 2 6 . . 4 . . 2 . . . . . . 1 . . 1 . . . Worker 13 | . . 1 . . 2 . . . . . 1 . . . 7 2 . . . . . . . . . Builder 2 | . . . . . . 1 . . . . . . . . . 1 . . . . . . . . . Hauler 6 | . 1 . . . . 1 . . . . . 1 . . 2 1 . . . . . . . . . Recycler 4 | . . . . . . . . . . . . 1 . . . 3 . . . . . . . . . Operator 6 | . . . . . . 1 . . . . . 2 . . 2 1 . . . . . . . . . Watcher 7 | . 1 . . . . 1 . . . . . 1 1 . 3 . . . . . . . . . . Swarmer 36 | . . . . . . 7 1 . . 6 . 2 3 . . 2 . . . 10 . . . 4 1 Grunt 79 | . 1 2 . 1 4 5 4 . . 9 3 6 . . 1 15 5 15 2 6 . . . . . Brawler 7 | . . . . . 2 . . . . . . 1 . . . . 2 2 . . . . . . . Duelist 4 | . . . . . . 1 . . 1 1 . . . . . 1 . . . . . . . . . Sentry 24 | . . . . . 1 4 . . . 1 . 7 . 1 3 5 . 1 . 1 . . . . . Hunter 15 | . . . . . . 1 1 . . 2 2 2 1 . . 1 . 3 2 . . . . . . Programmer 13 | . . . . . . 3 . . . . 2 . . . . 4 1 . . 3 . . . . . Behemoth 3 | . . . . . . . . . . . . 2 . . . . 1 . . . . . . . . Compactor 1 | . . . . . . . . . . . . . . . . . . . . . . 1 . . . Enhanced Grunt 2 | . . . . . . . . . . . . . . . 2 . . . . . . . . . . Striker 1 | . . . . . . . . . . . . . . . . . . . 1 . . . . . . Z-Light 6 | . . . . . . . . . 6 . . . . . . . . . . . . . . . . Decomposer 1 | . . . . . . . . . . . . . . . . . 1 . . . . . . . . Assembler 2 | . . . . . . . . . 2 . . . . . . . . . . . . . . . . Assembled 33 | . . . . . . . . . 33 . . . . . . . . . . . . . . . . Golem 5 | . . . . . . . . . 5 . . . . . . . . . . . . . . . . Best Kill Streak 35 | . 2 1 . 1 2 8 4 . 35 7 3 4 3 1 9 6 4 12 4 5 . 1 . 3 1 Combat Bots Only 33 | . 1 1 . 1 2 8 4 . 33 7 3 4 3 1 1 6 4 12 4 5 . 1 . 3 1 Max Kills in Single Turn 18 | . 1 1 . 1 2 2 1 . 18 3 2 2 1 1 9 3 1 3 1 2 . 1 . 1 1 Gunslinging . | . . . . . . . . . . . . . . . . . . . . . . . . . . Exploded 18 | . . 1 . . 2 2 1 . 18 3 . . . . . 3 1 3 . . . . . . . Melee 1 | . . . . . . . . . . . . . . . . . . . . . . . . . 1 Uniques/NPCs Destroyed 1 | . . . . . . . . . 1 . . . . . . . . . . . . . . . . Z-Imprinter (-7/Deep Caves) Combat | -11 -10 -10 -10 -9 -8 -7 -7 -7 -7 -6 -6 -6 -6 -6 -6 -5 -5 -5 -5 -4 -4 -4 -4 -3 -3 -------- Run | Scr Mat Min Exi Min Mat Fac Low Zio Dee Pro Fac Ext Cet Arc Hub Fac Upp Upp War Pro Fac Was Fac Res Qua Damage Taken 17513 | . 12 174 . 148 496 971 79 . 1213 1714 948 720 120 165 937 1956 543 1589 97 849 36 869 98 1696 2083 Core 2814 | . 12 26 . 41 64 78 . . 52 193 53 68 6 45 53 162 66 180 . 61 . 352 . 425 877 Absorbed by Shields 1618 | . . . . . . . . . . . . 39 73 . . . . . 45 805 35 149 14 458 . Core Remaining (%) 72 | 100 . . . 68 88 . . . . 53 . . . . 73 . . . . 53 . . 69 . . Volleys Fired 581 | . 4 15 1 9 30 43 8 1 66 35 35 40 15 5 30 68 26 41 28 44 1 19 1 13 3 Largest 3 | . 2 2 2 2 3 2 2 1 3 2 3 3 3 3 3 3 3 3 3 3 1 2 1 2 1 Hottest 243 | . 40 40 120 120 183 180 150 90 180 63 75 75 130 130 130 243 243 162 75 75 30 50 30 188 66 Shots Fired 1192 | . 8 26 2 18 60 82 16 1 115 57 61 107 34 13 59 165 47 62 61 132 1 37 1 24 3 Gun 175 | . 8 22 . . 36 14 8 . 28 4 12 . 2 4 13 . . . . . . . . 24 . Cannon 969 | . . . 2 18 23 65 7 1 79 41 49 107 32 9 46 161 45 51 61 132 . 37 . . 3 Launcher 46 | . . 4 . . 1 3 1 . 8 12 . . . . . 4 2 11 . . . . . . . Special 2 | . . . . . . . . . . . . . . . . . . . . . 1 . 1 . . Kinetic 60 | . 8 22 . . . . . . . 15 12 . . . . . . . . . . . . . 3 Thermal 919 | . . . 2 18 59 79 15 1 42 23 45 107 34 13 59 123 11 34 61 132 . 37 . 24 . Explosive 38 | . . 4 . . 1 . . . 8 12 . . . . . . 2 11 . . . . . . . Electromagnetic 173 | . . . . . . 3 1 . 65 7 4 . . . . 42 34 17 . . . . . . . Robot Hit Streak 20 | . 4 9 . 4 7 9 7 . 20 20 14 19 7 4 10 15 9 11 9 15 1 11 1 7 . Robot Miss Streak 5 | . 2 2 . 2 2 2 3 . 4 3 5 2 1 1 2 5 3 3 2 2 . 1 . 3 . Penetration Max . | . . . . . . . . . . . . . . . . . . . . . . . . . . Secondary Targets 1 | . . . . . . . . . . . . . . . . . . . . . . . . 1 . Max Gunslinging Chain 1 | . . . . . . . . . . . . . . . . . . . . . . . . 1 . Autonomous 11 | . . . . . . . . . . 11 . . . . . . . . . . . . . . . Shots Hit Robots 694 | . 4 17 . 10 37 50 7 . 72 44 29 59 16 9 35 107 29 37 19 63 1 31 1 16 1 Core Hits 443 | . 4 11 . 2 13 36 7 . 102 37 12 29 9 1 25 56 15 38 6 27 . 5 1 6 1 Critical Hits 3 | . . . . . . 1 . . 1 . . . . . . . 1 . . . . . . . . Critical Kills 2 | . . . . . . . . . 1 . . . . . . . 1 . . . . . . . . Critical Parts Destroyed 1 | . . . . . . 1 . . . . . . . . . . . . . . . . . . . Melee Attacks 22 | . . 1 . . . . . 18 . . . . . . . . . . . . . . . . 3 Impact . | . . . . . . . . . . . . . . . . . . . . . . . . . . Slashing 22 | . . 1 . . . . . 18 . . . . . . . . . . . . . . . . 3 Piercing . | . . . . . . . . . . . . . . . . . . . . . . . . . . Sneak Attacks . | . . . . . . . . . . . . . . . . . . . . . . . . . . Combat Hostiles . | . . . . . . . . . . . . . . . . . . . . . . . . . . Follow-up Attacks . | . . . . . . . . . . . . . . . . . . . . . . . . . . Damage Inflicted 35066 | . 47 211 . 212 880 2204 401 . 4117 3028 1201 2690 828 314 2451 5738 1431 3592 806 2820 . 1486 26 485 98 Guns 2157 | . 47 137 . . 393 236 189 . 290 23 65 . . 45 247 . . . . . . . . 485 . Cannons 23659 | . . . . 212 361 1529 114 . 1191 1688 1136 2690 828 269 1140 4750 999 1640 806 2820 . 1486 . . . Explosions 9126 | . . 74 . . 126 439 98 . 2636 1317 . . . . 1064 988 432 1952 . . . . . . . Melee 83 | . . . . . . . . . . . . . . . . . . . . . . . . . 83 Ramming 41 | . . . . . . . . . . . . . . . . . . . . . . . 26 . 15 Kinetic 1155 | . 47 137 . . . . . . . 906 65 . . . . . . . . . . . . . . Thermal 21978 | . . . . 212 754 1901 303 . 584 699 1055 2690 828 314 1387 4074 411 1169 806 2820 . 1486 . 485 . Explosive 6969 | . . 74 . . 126 . . . 2636 1317 . . . . . 432 432 1952 . . . . . . . Electromagnetic 4840 | . . . . . . 303 98 . 897 106 81 . . . 1064 1232 588 471 . . . . . . . Impact . | . . . . . . . . . . . . . . . . . . . . . . . . . . Slashing 83 | . . . . . . . . . . . . . . . . . . . . . . . . . 83 Piercing . | . . . . . . . . . . . . . . . . . . . . . . . . . . Highest Corruption 34 | . . . . . . 1 1 1 . . 6 6 6 6 13 2 3 3 10 . . 34 34 3 5 Average Corruption 4 | . . . . . . 1 1 1 . . 6 6 6 6 8 1 2 3 6 . . 18 34 1 3 Corruption Purged . | . . . . . . . . . . . . . . . . . . . . . . . . . . Effects 226 | . . . . . . 3 1 1 . . 18 56 18 5 28 9 12 18 1 . . 32 17 3 4 Message Errors 52 | . . . . . . 2 1 1 . . 5 12 7 . 5 2 2 4 . . . 2 5 1 3 Matter Fused 35 | . . . . . . . . . . . 3 12 1 4 4 . . 6 1 . . 2 2 . . Heat Flow Errors 16 | . . . . . . . . . . . 3 2 2 . 1 1 . 3 . . . 3 . . 1 Energy Discharges 30 | . . . . . . 1 . . . . 3 10 3 . 3 . 4 1 . . . 4 1 . . Parts Rejected 1 | . . . . . . . . . . . . . 1 . . . . . . . . . . . . Data Loss (minor) 23 | . . . . . . . . . . . 1 7 . . 3 2 3 2 . . . 2 1 2 . Data Loss (major) 5 | . . . . . . . . . . . . 3 2 . . . . . . . . . . . . Misfires 4 | . . . . . . . . . . . 1 3 . . . . . . . . . . . . . Misdirections 21 | . . . . . . . . . . . . . . . 1 . . . . . . 12 8 . . Targeting Errors 33 | . . . . . . . . . . . 2 7 2 . 9 3 2 2 . . . 6 . . . Weapon Failures 6 | . . . . . . . . . . . . . . 1 2 1 1 . . . . 1 . . . Overload Shots 4 | . . . . . . . 4 . . . . . . . . . . . . . . . . . . Overflow Damage 1398 | . . . . . . 57 17 . 85 190 124 101 . 34 99 321 75 54 19 222 . . . . . Projectiles 1100 | . . . . . . 51 17 . 18 154 124 101 . 34 54 255 30 21 19 222 . . . . . Explosions 298 | . . . . . . 6 . . 67 36 . . . . 45 66 45 33 . . . . . . . Melee . | . . . . . . . . . . . . . . . . . . . . . . . . . . Knockbacks 1 | . . . . . . . . . . 1 . . . . . . . . . . . . . . . Impact . | . . . . . . . . . . . . . . . . . . . . . . . . . . Kinetic 1 | . . . . . . . . . . 1 . . . . . . . . . . . . . . . Secondary . | . . . . . . . . . . . . . . . . . . . . . . . . . . Self-Inflicted Damage 576 | . . . . . . 40 . . . 128 . . . . 195 187 6 . . . . . 13 . 7 Shots 14 | . . . . . . 2 . . . 4 . . . . 2 5 1 . . . . . . . . Rammed 2 | . . . . . . . . . . . . . . . . . . . . . . . 1 . 1 Targets Rammed 2 | . . . . . . . . . . . . . . . . . . . . . . . 1 . 1 Kicked . | . . . . . . . . . . . . . . . . . . . . . . . . . . Crushed . | . . . . . . . . . . . . . . . . . . . . . . . . . . Highest Temperature 519 | . . 19 60 316 369 294 99 18 84 6 144 141 105 . 247 345 334 213 . . . 259 . 519 153 Average Temperature 107 | . . 11 31 151 82 88 45 13 27 4 69 65 61 . 66 96 120 73 . . . 115 . 228 86 Received Heat Transfer 3055 | . 6 99 . 87 279 108 27 . 292 387 30 207 . 18 153 441 168 447 . 96 . . 18 132 60 Effects 9 | . . . . 1 3 1 . . . . . . . . . . . . . . . . . 4 . Shutdowns 2 | . . . . . 1 . . . . . . . . . . . . . . . . . . 1 . Energy Bleed 4 | . . . . 1 1 . . . . . . . . . . . . . . . . . . 2 . Interference 2 | . . . . . 1 1 . . . . . . . . . . . . . . . . . . . Damage (major) 1 | . . . . . . . . . . . . . . . . . . . . . . . . 1 . Siege Activations . | . . . . . . . . . . . . . . . . . . . . . . . . . . Robots Corrupted 14 | . . . . . . . . . 5 1 . . . . 2 3 1 2 . . . . . . . Combat Hostiles 12 | . . . . . . . . . 5 1 . . . . . 3 1 2 . . . . . . . Parts Fried 32 | . . . . . . 1 . . 5 3 1 1 . . 4 10 3 4 . . . . . . . Impact Corruptions . | . . . . . . . . . . . . . . . . . . . . . . . . . . Robots Melted . | . . . . . . . . . . . . . . . . . . . . . . . . . . Combat Hostiles . | . . . . . . . . . . . . . . . . . . . . . . . . . . Parts Melted 7 | . . . . . . . . . 1 . 1 . . 1 . 1 . 1 . 2 . . . . . Heat Transferred 15609 | . . . . 444 1369 1815 373 . 736 450 575 1511 425 224 921 2525 175 650 450 1500 . 837 . 629 . Parts Sabotaged . | . . . . . . . . . . . . . . . . . . . . . . . . . . Parts Stolen . | . . . . . . . . . . . . . . . . . . . . . . . . . . Parts Stripped . | . . . . . . . . . . . . . . . . . . . . . . . . . . Power Chain Reactions 4 | . . . . . . 2 . . . . . . . . . 2 . . . . . . . . . Missiles Intercepted . | . . . . . . . . . . . . . . . . . . . . . . . . . . Alert | -11 -10 -10 -10 -9 -8 -7 -7 -7 -7 -6 -6 -6 -6 -6 -6 -5 -5 -5 -5 -4 -4 -4 -4 -3 -3 ------- Run | Scr Mat Min Exi Min Mat Fac Low Zio Dee Pro Fac Ext Cet Arc Hub Fac Upp Upp War Pro Fac Was Fac Res Qua Peak Influence 974 | . 64 137 . 162 291 573 . . . . 120 469 887 541 753 974 . . . . 157 54 67 118 110 Average Influence 235 | . 17 38 . 116 153 190 . . . . 31 222 585 499 316 610 . . . . 157 20 10 28 54 Maximum Alert Level 3 | . . . . . 1 2 . . . . . 2 3 2 3 3 . . . . . . . . . Low Security (%) 55 | . 100 100 . 100 61 55 . . . . 100 48 . . 13 . . . . . 100 100 100 100 100 Level 1 19 | . . . . . 38 27 . . . . . 36 6 13 72 12 . . . . . . . . . Level 2 19 | . . . . . . 16 . . . . . 14 68 86 10 56 . . . . . . . . . Level 3 5 | . . . . . . . . . . . . . 24 . 2 30 . . . . . . . . . Level 4 . | . . . . . . . . . . . . . . . . . . . . . . . . . . Level 5 . | . . . . . . . . . . . . . . . . . . . . . . . . . . High Security . | . . . . . . . . . . . . . . . . . . . . . . . . . . Max Security . | . . . . . . . . . . . . . . . . . . . . . . . . . . Squads Dispatched 36 | . 1 . . . 1 6 . . . 1 3 3 . . 4 8 . 1 . . . . 3 3 2 Investigation 6 | . . . . . 1 . . . . 1 . 1 . . . 2 . . . . . . . 1 . Extermination 7 | . . . . . . 3 . . . . 2 . . . . 1 . . . . . . . 1 . Reinforcement 17 | . 1 . . . . 1 . . . . 1 2 . . 3 3 . . . . . . 3 1 2 Assault 3 | . . . . . . 1 . . . . . . . . . 1 . 1 . . . . . . . Garrison 3 | . . . . . . 1 . . . . . . . . 1 1 . . . . . . . . . Intercept . | . . . . . . . . . . . . . . . . . . . . . . . . . . Construction Impeded 5 | . . . . . . . . . . . . 1 . . 1 3 . . . . . . . . . Haulers Reinforced . | . . . . . . . . . . . . . . . . . . . . . . . . . . Stealth | -11 -10 -10 -10 -9 -8 -7 -7 -7 -7 -6 -6 -6 -6 -6 -6 -5 -5 -5 -5 -4 -4 -4 -4 -3 -3 --------- Run | Scr Mat Min Exi Min Mat Fac Low Zio Dee Pro Fac Ext Cet Arc Hub Fac Upp Upp War Pro Fac Was Fac Res Qua Distress Signals 19 | . 1 . . . 1 2 . . . . . 2 2 . 3 2 . . . . . . 1 3 2 Communications Jammed . | . . . . . . . . . . . . . . . . . . . . . . . . . . Distress Signals . | . . . . . . . . . . . . . . . . . . . . . . . . . . Times Spotted 431 | . 3 4 . 5 18 30 9 . 58 20 12 40 22 4 21 40 14 19 9 21 1 15 9 25 32 Peak Tracking Total 37 | . 3 2 . 3 3 7 4 . 37 9 3 6 7 2 5 9 4 10 6 4 1 6 6 12 17 Tactical Retreats 31 | . . . . . 1 2 1 . 2 2 . 1 . . 1 1 4 . . . . 8 . 4 4 Traps | -11 -10 -10 -10 -9 -8 -7 -7 -7 -7 -6 -6 -6 -6 -6 -6 -5 -5 -5 -5 -4 -4 -4 -4 -3 -3 ------- Run | Scr Mat Min Exi Min Mat Fac Low Zio Dee Pro Fac Ext Cet Arc Hub Fac Upp Upp War Pro Fac Was Fac Res Qua Traps Triggered 13 | . . . . . 1 3 . . . . . 5 . . 1 1 . . . . 1 . . 1 . Indirectly . | . . . . . . . . . . . . . . . . . . . . . . . . . . Trap Hack Attempts . | . . . . . . . . . . . . . . . . . . . . . . . . . . Triggered . | . . . . . . . . . . . . . . . . . . . . . . . . . . Disarmed 4 | . . . . . . . . . . . . . . . . . . . . . . . . . 4 Reprogrammed . | . . . . . . . . . . . . . . . . . . . . . . . . . . Reused . | . . . . . . . . . . . . . . . . . . . . . . . . . . Traps Extracted . | . . . . . . . . . . . . . . . . . . . . . . . . . . Installed . | . . . . . . . . . . . . . . . . . . . . . . . . . . Triggered 9 | . . . . . . . . . . . . . . . . . . . 9 . . . . . . Machines | -11 -10 -10 -10 -9 -8 -7 -7 -7 -7 -6 -6 -6 -6 -6 -6 -5 -5 -5 -5 -4 -4 -4 -4 -3 -3 ---------- Run | Scr Mat Min Exi Min Mat Fac Low Zio Dee Pro Fac Ext Cet Arc Hub Fac Upp Upp War Pro Fac Was Fac Res Qua Machines Disabled 64 | . . 5 . 2 1 6 . . 5 3 1 6 6 . 16 7 . 1 2 . . . . . 3 Max in Single Turn 6 | . . 2 . 1 1 2 . . 1 1 1 2 1 . 6 2 . 1 1 . . . . . 1 Network Hub 2 | . . . . . . . . . . . . . . . 2 . . . . . . . . . . Machines Sabotaged . | . . . . . . . . . . . . . . . . . . . . . . . . . . Garrisons Compromised . | . . . . . . . . . . . . . . . . . . . . . . . . . . Overloaded Fab Kills . | . . . . . . . . . . . . . . . . . . . . . . . . . . Fab Network Shutdowns . | . . . . . . . . . . . . . . . . . . . . . . . . . . Hacking | -11 -10 -10 -10 -9 -8 -7 -7 -7 -7 -6 -6 -6 -6 -6 -6 -5 -5 -5 -5 -4 -4 -4 -4 -3 -3 --------- Run | Scr Mat Min Exi Min Mat Fac Low Zio Dee Pro Fac Ext Cet Arc Hub Fac Upp Upp War Pro Fac Was Fac Res Qua Machines Accessed 60 | . . . 3 . 3 4 . 1 . 1 2 11 4 1 4 5 2 1 5 . . . 1 6 6 Terminals 39 | . . . . . 3 2 . . . 1 2 11 4 . 4 2 . . . . . . . 5 5 Fabricators 4 | . . . . . . 2 . . . . . . . . . 1 . . . . . . . 1 . Repair Stations 1 | . . . . . . . . . . . . . . . . . . . . . . . 1 . . Recycling Units . | . . . . . . . . . . . . . . . . . . . . . . . . . . Scanalyzers 2 | . . . . . . . . . . . . . . . . 2 . . . . . . . . . Garrison Access 1 | . . . . . . . . . . . . . . . . . . . . . . . . . 1 Total Hacks 202 | . . . 9 . 7 12 . 6 . 5 6 33 5 1 18 28 2 1 12 . . . 5 37 15 Successful 105 | . . . 9 . 4 6 . 6 . 5 2 16 3 1 11 10 2 1 12 . . . . 11 6 Failed 96 | . . . . . 3 6 . . . . 4 17 2 . 7 18 . . . . . . 5 25 9 Catastrophic 20 | . . . . . . 1 . . . . 1 2 1 . 2 4 . . . . . . 2 5 2 Database Lockouts 1 | . . . . . . . . . . . . . . . . . . . . . . . . 1 . Manual 69 | . . . 1 . 6 2 . 1 . . 5 12 4 . 7 6 . . . . . . . 17 8 Terminals 135 | . . . . . 7 4 . . . 5 6 33 5 . 18 10 . . . . . . . 33 14 Fabricators 18 | . . . . . . 8 . . . . . . . . . 6 . . . . . . . 4 . Repair Stations 5 | . . . . . . . . . . . . . . . . . . . . . . . 5 . . Recycling Units . | . . . . . . . . . . . . . . . . . . . . . . . . . . Scanalyzers 12 | . . . . . . . . . . . . . . . . 12 . . . . . . . . . Garrison Access 1 | . . . . . . . . . . . . . . . . . . . . . . . . . 1 Terminal Hacks 77 | . . . 9 . 4 1 . 6 . 5 2 12 1 1 8 2 2 1 12 . . . . 8 3 Record 18 | . . . 8 . . . . . . 5 . . 1 1 . . . . 3 . . . . . . Part Schematic 11 | . . . . . . . . 6 . . . 1 . . . . . . . . . . . 3 1 Robot Analysis 1 | . . . . . . . . . . . . 1 . . . . . . . . . . . . . Prototype ID Bank 7 | . . . . . . . . . . . . . . . . . . . 7 . . . . . . Open Door 7 | . . . . . . . . . . . . 2 . . . . 2 1 2 . . . . . . Level Access Points 1 | . . . . . . . . . . . . . . . 1 . . . . . . . . . . Branch Access Points 4 | . . . . . . 1 . . . . 1 . . . . 1 . . . . . . . 1 . Machine Index 1 | . . . . . . . . . . . . . . . . . . . . . . . . 1 . Terminal Index 1 | . . . . . . . . . . . . . . . 1 . . . . . . . . . . Alert Level 7 | . . . . . 2 . . . . . 1 1 . . 2 . . . . . . . . 1 . Unreport Threat 13 | . . . . . 2 . . . . . . 5 . . 4 1 . . . . . . . 1 . Disarm Traps 1 | . . . . . . . . . . . . . . . . . . . . . . . . . 1 Maintenance Status 1 | . . . . . . . . . . . . 1 . . . . . . . . . . . . . Surveillance Status 1 | . . . . . . . . . . . . 1 . . . . . . . . . . . . . Hauler Manifests 1 | . . . . . . . . . . . . . . . . . . . . . . . . 1 . Zone Layout 1 | . . . . . . . . . . . . . . . . . . . . . . . . . 1 EX-Prototype ID Bank 1 | . . . 1 . . . . . . . . . . . . . . . . . . . . . . Fabricator Hacks 5 | . . . . . . 4 . . . . . . . . . 1 . . . . . . . . . Build 5 | . . . . . . 4 . . . . . . . . . 1 . . . . . . . . . Repair Station Hacks . | . . . . . . . . . . . . . . . . . . . . . . . . . . Recycling Unit Hacks . | . . . . . . . . . . . . . . . . . . . . . . . . . . Scanalyzer 6 | . . . . . . . . . . . . . . . . 6 . . . . . . . . . Insert Component 3 | . . . . . . . . . . . . . . . . 3 . . . . . . . . . Analyze 3 | . . . . . . . . . . . . . . . . 3 . . . . . . . . . Garrison Access Hacks . | . . . . . . . . . . . . . . . . . . . . . . . . . . Unauthorized Hacks 17 | . . . . . . 1 . . . . . 4 2 . 3 1 . . . . . . . 3 3 Terminals 16 | . . . . . . 1 . . . . . 4 2 . 3 1 . . . . . . . 3 2 Botnet 15 | . . . . . . 1 . . . . . 3 2 . 3 1 . . . . . . . 3 2 Operators 1 | . . . . . . . . . . . . 1 . . . . . . . . . . . . . Fabricators . | . . . . . . . . . . . . . . . . . . . . . . . . . . Repair Stations . | . . . . . . . . . . . . . . . . . . . . . . . . . . Recycling Units . | . . . . . . . . . . . . . . . . . . . . . . . . . . Scanalyzers . | . . . . . . . . . . . . . . . . . . . . . . . . . . Garrison Access 1 | . . . . . . . . . . . . . . . . . . . . . . . . . 1 Reprogram 1 | . . . . . . . . . . . . . . . . . . . . . . . . . 1 Data Cores Recovered 1 | . . . . . . . . . . . . 1 . . . . . . . . . . . . . Used 1 | . . . . . . . . . . . . 1 . . . . . . . . . . . . . Hacking Detections 43 | . . . . . 3 4 . . . 1 2 10 3 . 4 5 . . . . . . 1 6 4 Full Trace Events 4 | . . . . . . . . . . 1 . 1 . . . 2 . . . . . . . . . Feedback Events . | . . . . . . . . . . . . . . . . . . . . . . . . . . Feedback Blocked . | . . . . . . . . . . . . . . . . . . . . . . . . . . Robot Schematics Acquired . | . . . . . . . . . . . . . . . . . . . . . . . . . . Robots Built 8 | . . . . . . 6 . . . . . . . . . 2 . . . . . . . . . Matter 624 | . . . . . . 372 . . . . . . . . . 252 . . . . . . . . . Time 165 | . . . . . . 98 . . . . . . . . . 67 . . . . . . . . . Total Robot Build Rating 20 | . . . . . . 12 . . . . . . . . . 8 . . . . . . . . . Part Schematics Acquired 12 | . . . . . . . . 6 . . . 1 . . . 1 . . . . . . . 3 1 Parts Built 4 | . . . . . . 4 . . . . . . . . . . . . . . . . . . . Matter 424 | . . . . . . 424 . . . . . . . . . . . . . . . . . . . Time 212 | . . . . . . 212 . . . . . . . . . . . . . . . . . . . Total Part Build Rating 24 | . . . . . . 24 . . . . . . . . . . . . . . . . . . . Parts Repaired . | . . . . . . . . . . . . . . . . . . . . . . . . . . Time . | . . . . . . . . . . . . . . . . . . . . . . . . . . Parts Recycled . | . . . . . . . . . . . . . . . . . . . . . . . . . . Recycled Matter . | . . . . . . . . . . . . . . . . . . . . . . . . . . Retrieved Matter . | . . . . . . . . . . . . . . . . . . . . . . . . . . Retrieved Components . | . . . . . . . . . . . . . . . . . . . . . . . . . . Parts Scanalyzed 2 | . . . . . . . . . . . . . . . . 2 . . . . . . . . . Part Schematics Acquired 1 | . . . . . . . . . . . . . . . . 1 . . . . . . . . . Parts Damaged . | . . . . . . . . . . . . . . . . . . . . . . . . . . Bothacking | -11 -10 -10 -10 -9 -8 -7 -7 -7 -7 -6 -6 -6 -6 -6 -6 -5 -5 -5 -5 -4 -4 -4 -4 -3 -3 ------------ Run | Scr Mat Min Exi Min Mat Fac Low Zio Dee Pro Fac Ext Cet Arc Hub Fac Upp Upp War Pro Fac Was Fac Res Qua Used RIF Installer . | . . . . . . . . . . . . . . . . . . . . . . . . . . Robots Hacked 2 | . . . . . . . . . . . . . . . . . . . . . 1 . 1 . . Non-combat . | . . . . . . . . . . . . . . . . . . . . . . . . . . Combat . | . . . . . . . . . . . . . . . . . . . . . . . . . . Robot Hacks Applied . | . . . . . . . . . . . . . . . . . . . . . . . . . . Manual 2 | . . . . . . . . . . . . . . . . . . . . . 1 . 1 . . Relay Couplers Released . | . . . . . . . . . . . . . . . . . . . . . . . . . . Robots Rewired 20 | . . . 2 . . . . . . . . 18 . . . . . . . . . . . . . Allies Hacked 1 | . . . . . . . . . . . . 1 . . . . . . . . . . . . . Hacks Repelled . | . . . . . . . . . . . . . . . . . . . . . . . . . . Allies | -11 -10 -10 -10 -9 -8 -7 -7 -7 -7 -6 -6 -6 -6 -6 -6 -5 -5 -5 -5 -4 -4 -4 -4 -3 -3 -------- Run | Scr Mat Min Exi Min Mat Fac Low Zio Dee Pro Fac Ext Cet Arc Hub Fac Upp Upp War Pro Fac Was Fac Res Qua Total Allies 56 | . . 1 2 3 . 9 . 6 . . . 26 5 . . 2 . . . . 1 . 1 . . Largest Group 15 | . . 1 2 5 5 9 6 11 11 1 . 15 14 7 4 2 . . . . 1 . 1 . . Highest-Rated Group 804 | . . 31 29 69 69 201 145 404 404 26 . 437 804 616 376 76 . . . . 115 . 115 . . Highest-Rated Ally 156 | . . 31 21 21 21 31 31 94 94 26 . 156 156 133 94 38 . . . . 115 . 115 . . Total Orders 1 | . . . . . . . . . . . . . . . . . . . . . . . 1 . . COLLECT 1 | . . . . . . . . . . . . . . . . . . . . . . . 1 . . Ally Attacks 725 | . . 1 . 15 66 46 34 . 166 . . 171 109 8 57 30 . . . . . 8 14 . . Total Damage 18787 | . . 22 . 222 1034 829 693 . 4226 . . 3479 3325 357 2170 785 . . . . . 622 1023 . . Kills 122 | . . 1 . 4 12 5 3 . 27 . . 25 19 4 13 5 . . . . . . 4 . . Allies Corrupted 2 | . . . . . . . . . . . . . . . 1 . . . . . . 1 . . . Allies Melted . | . . . . . . . . . . . . . . . . . . . . . . . . . . Intel | -11 -10 -10 -10 -9 -8 -7 -7 -7 -7 -6 -6 -6 -6 -6 -6 -5 -5 -5 -5 -4 -4 -4 -4 -3 -3 ------- Run | Scr Mat Min Exi Min Mat Fac Low Zio Dee Pro Fac Ext Cet Arc Hub Fac Upp Upp War Pro Fac Was Fac Res Qua Robot Analysis Total 1 | . . . . . . . . . . . . 1 . . . . . . . . . . . . . Derelict Logs Recovered 10 | . . 3 . . . . 1 1 . 1 . . . . . . 1 2 . 1 . . . . . Drone Launches 14 | . . . . . . . . . . . . . . . . . . . . . 1 1 12 . . Drone Recoveries 3 | . . . . . . . . . . . . . . . . . . . . . . . 3 . . Exploration | -11 -10 -10 -10 -9 -8 -7 -7 -7 -7 -6 -6 -6 -6 -6 -6 -5 -5 -5 -5 -4 -4 -4 -4 -3 -3 ------------- Run | Scr Mat Min Exi Min Mat Fac Low Zio Dee Pro Fac Ext Cet Arc Hub Fac Upp Upp War Pro Fac Was Fac Res Qua Turns Passed 21993 | . 241 864 745 130 820 2108 585 1706 2822 1084 946 1569 574 124 475 1553 1550 1183 1056 670 35 365 159 388 241 Spaces Moved 11982 | 1 154 536 482 68 417 957 361 1045 1420 430 247 615 307 62 241 721 621 548 553 330 20 459 222 663 502 Core 26 | . . . . . . . . . . . . . . . . . . . . . . . 7 . 19 Treads 794 | . . . . . 365 429 . . . . . . . . . . . . . . . . . . . Legs 8019 | 1 154 536 482 68 52 528 361 1045 1420 430 247 615 307 62 241 721 116 . 250 330 20 33 . . . Wheels 1356 | . . . . . . . . . . . . . . . . . 505 548 303 . . . . . . Hover 568 | . . . . . . . . . . . . . . . . . . . . . . . 173 395 . Flight 1219 | . . . . . . . . . . . . . . . . . . . . . . 426 42 268 483 Fastest Speed 37 | 120 120 150 150 150 150 150 150 153 123 140 140 163 163 163 163 140 140 150 150 156 150 40 40 37 37 Average Speed 137 | 120 144 150 150 150 161 163 150 153 147 141 147 163 166 163 163 163 152 150 152 156 150 48 47 44 38 Slowest Speed 210 | 120 150 150 150 150 210 180 153 153 170 163 185 163 170 163 190 170 163 150 156 156 156 190 51 56 120 Overloaded Moves . | . . . . . . . . . . . . . . . . . . . . . . . . . . Propulsion Burnouts . | . . . . . . . . . . . . . . . . . . . . . . . . . . Robots Hopped 48 | . . . . . . . . . . . . . . . . . . . . . . 20 . 10 18 Cave-ins Triggered 1 | . . . . . . . . . . . 1 . . . . . . . . . . . . . . Exploration Rate (%) 51 | 2 32 81 91 18 33 31 49 86 87 50 6 81 81 74 47 23 75 78 68 57 2 80 16 25 67 Regions Visited 25 Branch Regions 16 Pre-discovered Areas 9 | . . 2 1 . . . 1 3 . . . . . . . . . 2 . . . . . . . Known Exits Taken 5 | . . . . . . 1 . . . . 1 . . . 1 1 . . . . . . . 1 . Unknown Exits Taken 18 | 1 1 1 1 1 1 . 1 1 1 1 . 1 1 1 . . 1 1 1 1 . . 1 . . Scrap Searched 15 | . . 3 . . . . 3 3 . 1 . . . . . . 1 3 . 1 . . . . . Spaces Dug 49 | . . . . . . . . 3 . . 5 . 1 . 1 8 3 . 4 24 . . . . . Terrain Destroyed 898 | . . 15 . . 9 13 5 3 19 81 14 30 4 3 328 114 24 150 13 71 . 2 . . . Melee 3 | . . . . . . . . 3 . . . . . . . . . . . . . . . . . Projectile 217 | . . . . . 1 10 5 . 4 4 14 30 4 3 17 27 4 8 13 71 . 2 . . . AOE 678 | . . 15 . . 8 3 . . 15 77 . . . . 311 87 20 142 . . . . . . . Actions | -11 -10 -10 -10 -9 -8 -7 -7 -7 -7 -6 -6 -6 -6 -6 -6 -5 -5 -5 -5 -4 -4 -4 -4 -3 -3 --------- Run | Scr Mat Min Exi Min Mat Fac Low Zio Dee Pro Fac Ext Cet Arc Hub Fac Upp Upp War Pro Fac Was Fac Res Qua Total 16423 | . 166 571 502 80 508 1419 387 1117 2057 858 781 1101 340 75 271 963 1185 856 715 386 25 549 271 717 523 Wait 3019 | . . . . . 5 342 12 36 443 381 474 173 6 5 . 120 518 239 107 13 . 72 34 18 21 Move 11877 | . 153 535 481 67 416 956 360 1044 1419 429 246 614 306 61 240 720 620 547 552 329 20 428 221 644 469 Hop 33 | . . . . . . . . . . . . . . . . . . . . . . 10 . 8 15 Pick Up 135 | . 6 6 1 2 18 19 2 3 33 4 4 2 5 . . 8 1 2 6 . 1 5 . 5 2 Fast Attach 109 | . 1 1 . . 8 11 . 4 16 2 4 1 2 1 1 12 4 5 3 . . 2 11 15 5 Attach 43 | . . 1 . . 3 4 1 1 8 5 1 . . . . 3 1 3 4 . 2 1 . 3 2 Detach 19 | . . . . . 1 . . 2 1 1 4 . . 1 . 3 2 3 1 . . . . . . Swap 38 | . . 6 1 . 9 2 2 1 8 1 . 1 . . . 3 1 1 1 . 1 . . . . Drop 249 | . 2 6 1 2 18 32 2 7 55 . 13 9 6 2 . 26 12 15 13 . . 12 3 11 2 Fire 581 | . 4 15 1 9 30 43 8 1 66 35 35 40 15 5 30 68 26 41 28 44 1 19 1 13 3 Melee 22 | . . 1 . . . . . 18 . . . . . . . . . . . . . . . . 3 Ram 2 | . . . . . . . . . . . . . . . . . . . . . . . 1 . 1 Kick . | . . . . . . . . . . . . . . . . . . . . . . . . . . Crush . | . . . . . . . . . . . . . . . . . . . . . . . . . . Escape Stasis 35 | . . . . . . 10 . . . . . 25 . . . . . . . . . . . . . Rewire 261 | . . . 17 . . . . . 8 . . 236 . . . . . . . . . . . . . Trap . | . . . . . . . . . . . . . . . . . . . . . . . . . . Miscellaneous . | . . . . . . . . . . . . . . . . . . . . . . . . . . Route ------- -11/Scrapyard -10/Materials -10/Mines (discovered 3 exits: [*Mat x2] / *Exi) -10/Exiles -9/Mines -8/Materials -7/Factory (discovered 2 exits: *Low x2) -7/Lower Caves (discovered 2 exits: [*Low] / *Zio) -7/Zion (discovered 2 exits: [*Dee] / [*Pro]) -7/Deep Caves -6/Proximity Caves -6/Factory (discovered 4 exits: Low x2 / *Ext x2) -6/Extension (discovered 2 exits: *Fac / *Cet) -6/Cetus (discovered 2 exits: *Fac / *Arc) -6/Archives (discovered 2 exits: *Hub x2) -6/Hub_04(d) (discovered 4 exits: *Fac x4) -5/Factory (discovered 3 exits: [*Fac] / *Upp x2) -5/Upper Caves -5/Upper Caves (discovered 2 exits: [*Fac] / *War) -5/Warlord -4/Proximity Caves -4/Factory -4/Waste -4/Factory (discovered 2 exits: *Res / [*Upp]) -3/Research (discovered 3 exits: Res / *Qua x2) -3/Quarantine (discovered 1 exit: *Res) History --------- Turn | Location | Event 1 | -11/Scrapyard | Discovered new exit (range 0) 1 | -11/Scrapyard | Entered Materials 219 | -10/Materials | Discovered new exit (range 14) 242 | -10/Materials | Entered Mines 257 | -10/Mines | A weapon hastily lodged in a ceiling crevice suddenly fell to the ground 308 | -10/Mines | Build established: Mutant 308 | -10/Mines | Found a damaged Exp. Sensor Array with a note attached 314 | -10/Mines | Found Prototype Device 343 | -10/Mines | Learned location of Zion (-7) 351 | -10/Mines | Received a Mining Laser from a helpful Derelict 528 | -10/Mines | Discovered new exit (range 9) 681 | -10/Mines | Learned Materials stockpile data 697 | -10/Mines | Received a Rocket Launcher from a helpful Derelict 875 | -10/Mines | Discovered new exit (range 6) 1099 | -10/Mines | Deemed a non-threat by the Exiles lab entrance 1100 | -10/Mines | Discovered new exit (range 5) 1106 | -10/Mines | Entered Exiles 1106 | -10/Exiles | Found Exiles lab destroyed 1263 | -10/Exiles | Opened EX-Vault 1276 | -10/Exiles | Found AWS/Autocannon 1837 | -10/Exiles | Discovered new exit (range 10) 1851 | -10/Exiles | Entered Mines 1851 | -9/Mines | Accompanied by 2 allies 1966 | -9/Mines | Discovered new exit (range 3) 1973 | -9/Mines | Assisted by bots powering up and referring to "LRC-V3" 1981 | -9/Mines | Entered Materials 1981 | -8/Materials | Accompanied by 5 allies 1981 | -8/Materials | Evolved 4 slots: Propulsion x1, Utility x2, Weapon x1 2116 | -8/Materials | Lost 3 parts (1n1u1w) 2248 | -8/Materials | Identified Exp. Sensor Array 2559 | -8/Materials | Build established: Scavenger-Mutant 2784 | -8/Materials | Discovered new exit (range 8) 2801 | -8/Materials | Entered Factory 2801 | -7/Factory | Accompanied by 1 ally 2801 | -7/Factory | Evolved 2 slots: Utility x2 3417 | -7/Factory | Fabricated Neutron Cannon (x2) 3523 | -7/Factory | Fabricated Neutron Cannon (x2) 3764 | -7/Factory | Garrison activated, responded to threat 3844 | -7/Factory | Build established: Mutant 4018 | -7/Factory | Destroyed 8 combat bots 4275 | -7/Factory | Allied Derelicts emerged from ambush trap array 4340 | -7/Factory | Fabricated L-31 Rogue (x3) 4389 | -7/Factory | Fabricated L-31 Rogue (x3) 4640 | -7/Factory | Discovered new exit (range 16) 4801 | -7/Factory | First assault squad dispatched 4814 | -7/Factory | Identified exit to Lower Caves 4832 | -7/Factory | Build established: Hauler-Mutant 4909 | -7/Factory | Entered Lower Caves 4909 | -7/Lower Caves | Accompanied by 6 allies 5480 | -7/Lower Caves | Discovered new exit (range 6) 5481 | -7/Lower Caves | A Derelict revealed a hidden shortcut to a safe place 5494 | -7/Lower Caves | Entered Zion 5494 | -7/Zion | Accompanied by 5 allies 5553 | -7/Zion | System corruption cleaned by Quarantine Array 5591 | -7/Zion | Build established: Hauler-Tank 5647 | -7/Zion | Given the Hacking Drone Bay 5651 | -7/Zion | Found Prototype Device 5651 | -7/Zion | Identified Hacking Drone Bay 5796 | -7/Zion | Discovered new exit (range 10) 5993 | -7/Zion | Given A8's code to call for help 6079 | -7/Zion | Learned location of Warlord (-5) 6493 | -7/Zion | Gained Derelict followers 7120 | -7/Zion | Discovered new exit (range 4) 7123 | -7/Zion | Saw the warning signs outside the Deep Caves entrance 7154 | -7/Zion | Enhanced Grunt warped into view, answering call for help 7154 | -7/Zion | Enhanced Grunt warped into view, answering call for help 7200 | -7/Zion | Entered Deep Caves 7200 | -7/Deep Caves | Accompanied by 11 allies 7320 | -7/Deep Caves | Build established: Hauler-Mutant 7476 | -7/Deep Caves | Z-Facility disabled 7539 | -7/Deep Caves | Attacked by Z-Imprinter 7568 | -7/Deep Caves | Allies destroyed Z-Imprinter 7590 | -7/Deep Caves | Found Prototype Protection 7590 | -7/Deep Caves | Identified Zio. Weapon Casing 7776 | -7/Deep Caves | Found Prototype Protection 7776 | -7/Deep Caves | Identified Zio. Heavy Carapace 7779 | -7/Deep Caves | Found Zio. Weapon Casing 7828 | -7/Deep Caves | Found Zio. Heavy Carapace 8003 | -7/Deep Caves | Discovered new exit (range 7) 8057 | -7/Deep Caves | Build established: Tank 8347 | -7/Deep Caves | Spotted as-85865 8356 | -7/Deep Caves | Destroyed as-85865 8396 | -7/Deep Caves | Triggered Deep Caves wall 8404 | -7/Deep Caves | Spotted AS-60957 8408 | -7/Deep Caves | Destroyed AS-60957 8412 | -7/Deep Caves | Spotted AS-82721 8422 | -7/Deep Caves | Destroyed AS-82721 8426 | -7/Deep Caves | Triggered Deep Caves wall 8431 | -7/Deep Caves | Spotted as-15999 8431 | -7/Deep Caves | Exposed GOLEM chamber 8436 | -7/Deep Caves | Destroyed 33 combat bots 8444 | -7/Deep Caves | Destroyed as-15999 8504 | -7/Deep Caves | Found GOLEM Unit 8533 | -7/Deep Caves | Found Superbattery 8660 | -7/Deep Caves | Build established: Mutant 9444 | -7/Deep Caves | Found Zio. Weapon Casing 9546 | -7/Deep Caves | Found Zio. Weapon Casing 9611 | -7/Deep Caves | Build established: Hauler-Gunner 9793 | -7/Deep Caves | Found GOLEM Unit 9798 | -7/Deep Caves | Found GOLEM Unit 9821 | -7/Deep Caves | Found GOLEM Unit 10022 | -7/Deep Caves | Entered Proximity Caves 10022 | -6/Proximity Caves | Accompanied by 1 ally 10069 | -6/Proximity Caves | Build established: Hauler-Mutant 10113 | -6/Proximity Caves | Learned Factory security intel 10323 | -6/Proximity Caves | Attracted the attention of an 0b10 base 10365 | -6/Proximity Caves | Destroyed 7 combat bots 10378 | -6/Proximity Caves | Lost 5 parts (1p4w) 10386 | -6/Proximity Caves | Discovered new exit (range 11) 10400 | -6/Proximity Caves | Learned Extension stockpile data 10400 | -6/Proximity Caves | Learned Extension garrison access intel 10725 | -6/Proximity Caves | Received a Behemoth hack from an annoying Tinkerer 10743 | -6/Proximity Caves | Build established: Scavenger-Gunner 11106 | -6/Proximity Caves | Entered Factory 11106 | -6/Factory | Evolved 2 slots: Power x1, Utility x1 11198 | -6/Factory | Identified exit to Lower Caves 11198 | -6/Factory | Identified exit to Extension 11330 | -6/Factory | Build established: Scavenger-Mutant 11471 | -6/Factory | Crushed by falling debris 11760 | -6/Factory | Build established: Hauler-Golem 12052 | -6/Factory | Entered Extension 12462 | -6/Extension | Rescued a captive Derelict 12508 | -6/Extension | Rescued a captive Derelict 12516 | -6/Extension | Rescued a captive Derelict 12570 | -6/Extension | Build established: Commander-Gunner 12593 | -6/Extension | Rescued a captive Derelict 12594 | -6/Extension | Rescued a captive Derelict 12720 | -6/Extension | Spotted B-75 Beast 12730 | -6/Extension | Spotted B-75 Beast 12735 | -6/Extension | Destroyed B-75 Beast 12740 | -6/Extension | Destroyed B-75 Beast 12894 | -6/Extension | Rescued A7 13089 | -6/Extension | Build established: Hauler-Golem 13213 | -6/Extension | Rescued a captive Derelict 13214 | -6/Extension | Rescued a captive Derelict 13435 | -6/Extension | Discovered new exit (range 10) 13437 | -6/Extension | Discovered new exit (range 6) 13517 | -6/Extension | Disrupted transfer network 13594 | -6/Extension | Build established: Commander-Golem 13621 | -6/Extension | Entered Cetus 13621 | -6/Cetus | Accompanied by 10 allies 13626 | -6/Cetus | Acquired a Cetus Manufacturing Module code from A7 13643 | -6/Cetus | Spotted Cetus Guard 13643 | -6/Cetus | Spotted Cetus Guard 13645 | -6/Cetus | Spotted Cetus Guard 13645 | -6/Cetus | Spotted Cetus Guard 13656 | -6/Cetus | Allies destroyed Cetus Guard 13658 | -6/Cetus | Allies destroyed Cetus Guard 13659 | -6/Cetus | Allies destroyed Cetus Guard 13661 | -6/Cetus | Allies destroyed Cetus Guard 13741 | -6/Cetus | Started Cetus Manufacturing Module 13766 | -6/Cetus | Manufactured an Enhanced Grunt 13791 | -6/Cetus | Manufactured an Enhanced Grunt 13816 | -6/Cetus | Manufactured an Enhanced Grunt 13841 | -6/Cetus | Manufactured an Enhanced Grunt 13859 | -6/Cetus | Escorted A7 to Cetus Mainframe 13866 | -6/Cetus | Manufactured an Enhanced Grunt 13929 | -6/Cetus | Discovered new exit (range 16) 13961 | -6/Cetus | Spotted Cetus Guard 13961 | -6/Cetus | Spotted Cetus Guard 13965 | -6/Cetus | Spotted Cetus Guard 13965 | -6/Cetus | Spotted Cetus Guard 13973 | -6/Cetus | Discovered new exit (range 16) 13979 | -6/Cetus | Allies destroyed Cetus Guard 13984 | -6/Cetus | Allies destroyed Cetus Guard 13987 | -6/Cetus | Allies destroyed Cetus Guard 13988 | -6/Cetus | Allies destroyed Cetus Guard 14009 | -6/Cetus | Met Revision 17 14085 | -6/Cetus | Cetus Manufacturing Module disabled 14144 | -6/Cetus | Build established: Commander-Mutant 14195 | -6/Cetus | Entered Archives 14195 | -6/Archives | Accompanied by 7 allies 14200 | -6/Archives | Received a hacking code to weaken MAIN.C 14236 | -6/Archives | Found Prototype Device 14236 | -6/Archives | Identified Exp. Thermal Shield 14255 | -6/Archives | Discovered new exit (range 16) 14267 | -6/Archives | Unable to access archive contents 14278 | -6/Archives | Discovered new exit (range 16) 14319 | -6/Archives | Entered Hub_04(d) 14319 | -6/Hub_04(d) | Accompanied by 4 allies 14388 | -6/Hub_04(d) | Discovered new exit (range 16) 14436 | -6/Hub_04(d) | Identified exit to Factory 14497 | -6/Hub_04(d) | Spotted B-75 Beast 14499 | -6/Hub_04(d) | System corruption reached 10% 14504 | -6/Hub_04(d) | Allies destroyed B-75 Beast 14516 | -6/Hub_04(d) | Garrison activated, responded to threat 14525 | -6/Hub_04(d) | Build established: Hauler-Golem 14779 | -6/Hub_04(d) | Network Hub disabled 14781 | -6/Hub_04(d) | Network Hub disabled 14794 | -6/Hub_04(d) | Entered Factory 14794 | -5/Factory | Evolved 2 slots: Utility x2 15136 | -5/Factory | Fabricated X-62 Marksman (x2) 15206 | -5/Factory | Garrison activated, responded to threat 15323 | -5/Factory | Identified exit to Upper Caves 15394 | -5/Factory | First assault squad dispatched 15817 | -5/Factory | Discovered new exit (range 15) 16245 | -5/Factory | Build established: Hauler-Tank 16347 | -5/Factory | Entered Upper Caves 16780 | -5/Upper Caves | Build established: Hauler-Golem 17417 | -5/Upper Caves | Spotted B-75 Beast 17475 | -5/Upper Caves | Destroyed B-75 Beast 17678 | -5/Upper Caves | Learned Factory emergency access door positions 17886 | -5/Upper Caves | Discovered new exit (range 8) 17897 | -5/Upper Caves | Entered another Upper Caves area 17944 | -5/Upper Caves | Attracted the attention of an 0b10 outpost 17996 | -5/Upper Caves | Discovered new exit (range 15) 18011 | -5/Upper Caves | Destroyed 12 combat bots 18790 | -5/Upper Caves | Learned location of Armory (-4) 18844 | -5/Upper Caves | Discovered new exit (range 3) 19080 | -5/Upper Caves | Entered Warlord 19122 | -5/Warlord | System corruption reached 10% 19130 | -5/Warlord | System corruption cleaned by Quarantine Array 19509 | -5/Warlord | Met Warlord 19534 | -5/Warlord | Warlord's base attacked by MAIN.C 19605 | -5/Warlord | Found Prototype Hackware 19615 | -5/Warlord | Found Prototype Device 19615 | -5/Warlord | Identified Exp. Cloaking Device 19630 | -5/Warlord | Found Prototype Reactor 19765 | -5/Warlord | Identified Vortex Chain Reactor 19776 | -5/Warlord | Found Prototype Device 19884 | -5/Warlord | Warlord forces counterattacked 19891 | -5/Warlord | Build established: Hauler-Mutant 20035 | -5/Warlord | Opened side exit 20093 | -5/Warlord | Spotted Striker 20098 | -5/Warlord | Destroyed Striker 20117 | -5/Warlord | Discovered new exit (range 14) 20136 | -5/Warlord | Entered Proximity Caves 20347 | -4/Proximity Caves | Build established: Hauler-Tank 20547 | -4/Proximity Caves | Attracted the attention of an 0b10 checkpoint 20603 | -4/Proximity Caves | Learned 4 Research zone layouts 20790 | -4/Proximity Caves | Discovered new exit (range 13) 20806 | -4/Proximity Caves | Entered Factory 20806 | -4/Factory | Evolved 2 slots: Propulsion x1, Utility x1 20818 | -4/Factory | Spotted B-86 Titan 20824 | -4/Factory | Befriended a Behemoth using the annoying Tinkerer's hack 20841 | -4/Factory | Sucked down chute 20841 | -4/Factory | Entered Waste 20850 | -4/Waste | 1 allies followed down the chute 20856 | -4/Waste | EMP discharged 20871 | -4/Waste | Spotted C-40 Crusher 20874 | -4/Waste | Spotted C-40 Crusher 20904 | -4/Waste | Crushed by Compactor (0 parts destroyed, 1 dropped) 20907 | -4/Waste | Crushed by Compactor (1 part destroyed, 1 dropped) 20910 | -4/Waste | Crushed by Compactor (0 parts destroyed, 1 dropped) 20915 | -4/Waste | Destroyed C-40 Crusher 20936 | -4/Waste | Spotted C-40 Crusher 20936 | -4/Waste | Spotted C-40 Crusher 20942 | -4/Waste | Crushed by Compactor (0 parts destroyed, 1 dropped) 20945 | -4/Waste | Crushed by Compactor (0 parts destroyed, 2 dropped) 20953 | -4/Waste | Identified Wardrone Bay 20956 | -4/Waste | EMP discharged 20956 | -4/Waste | System corruption reached 10% 20973 | -4/Waste | Lost 3 parts (2n1u) 20973 | -4/Waste | Spotted C-40 Crusher 20976 | -4/Waste | Spotted C-40 Crusher 21042 | -4/Waste | Crushed by Compactor (0 parts destroyed, 1 dropped) 21056 | -4/Waste | EMP discharged 21156 | -4/Waste | EMP discharged 21156 | -4/Waste | System corruption reached 30% 21191 | -4/Waste | Build established: Mutant 21196 | -4/Waste | Discovered new exit (range 16) 21206 | -4/Waste | Entered Factory 21206 | -4/Factory | Spotted B-86 Titan 21228 | -4/Factory | Befriended a Behemoth using the annoying Tinkerer's hack 21299 | -4/Factory | Discovered new exit (range 36) 21310 | -4/Factory | Discovered new exit (range 63) 21365 | -4/Factory | Entered Research 21365 | -3/Research | Evolved 2 slots: Utility x2 21366 | -3/Research | Identified exit to Research 21510 | -3/Research | Found Antimissile System 21543 | -3/Research | Identified exit to Quarantine 21748 | -3/Research | Lost 7 parts (1p1n4u1w) 21750 | -3/Research | Central database locked down 21753 | -3/Research | Entered Quarantine 21774 | -3/Quarantine | Found Antimissile System 21895 | -3/Quarantine | Found Alien Artifact 21895 | -3/Quarantine | Identified Stasis Generator 21900 | -3/Quarantine | Discovered exit to Research (range 15) 21907 | -3/Quarantine | Spotted Alpha 7 21918 | -3/Quarantine | Found Alien Energy Cannon 21935 | -3/Quarantine | Found Alien Slashing Weapon 21943 | -3/Quarantine | Identified Sigix Broadsword 21958 | -3/Quarantine | Core integrity fell below 50% 21987 | -3/Quarantine | Core integrity fell below 20% 21994 | -3/Quarantine | Destroyed by P-80 Master with Gamma Rifle Last Messages --------------- 21957_ Slug penetrates Wall. 21957_ Penetrated by Slug. 21957_ Slug penetrates Wall. 21964_ Antimissile System destroyed. 21969_ Hacking Suite destroyed. 21976_ Adv. Targeting Computer destroyed. 21977_ Impulse Thruster Array destroyed. 21978_ K-01 Serf destroyed. 21980_ W-44 Eye sends out distress signal. 21982_ Slammed into W-44 Eye. 21984_ 3FZB&PSDCFJ03MJ1L|80L|Y7AU GJ 21984_ Slug penetrates Wall. 21984_ Penetrated by Slug. 21987_ Acquired Field Propulsion Array. 21987_ Slug penetrates Wall. 21991_ Penetrated by Slug. 21992_ Slug penetrates Wall. 21993_ U-05 Engineer lays Concrete. 21994_ Penetrated by Slug. 21994_ Field Propulsion Array destroyed. Map ----- +----------------------------------------------------+ | | | | | | | | | | | | | | | ?????????????????????????????????????????????????? | | ?????????????????????????????????????????????????? | | ?????????????????????????????????????????????????? | | ?????????????????????????????????????????????????? | | ?????????????????????????????????????????????????? | | ???????????????????????????????????###+###?#+#???? | | ???????????????????????????????????# ### ##? | | ????????????????????????????????#### # | | ????????????????????????????????# "" / | | ????????????????????????????????#""" === #??? | | ????????????????????????????????#"T == #??? | | ????????????????????????????#####""" = #??? | | ??????????????????####+####?# pp# "" #??? | | ??????????????????# = #?#p #### #??? | | ??????????????????# ### #### #??? | | ??????????????????# [ #### | | ??????????????????+ | | ??????????????????# = u ######### | | ???#"""???????????+ @#######"## #???????? | | ???T ???????????# ! #????? ### ##???????? | | ???# #??????????### ###????" #?# #????????? | | #### #????????????# ??????""" #?# #????????? | | ? #????????????# ??????? T" #?#####????????? | | ?? #????????????# ??????? """ #??????????????? | | ??? #????????????#??????? "" #??????????????? | | ???# #??????????????????????? #??????????????? | | ???# #??????????????????????? ! ???????????????? | | ???# #???????????????????????#######???????????? | | ???# #?????????????????????? #???????????? | | ???# #?????????????????????? == #???????????? | | ???# ###################### == #???????????? | | ???# # = #???????????? | | ???# + #???????????? | | ???# # #???????????? | | ???##############+######### # #???????????? | | ????????????# ##??# #? #???????????? | | ????????????# """## #? #???????????? | | ?????????#### """ """ """## ##########?##????????? | | ?????????#""" """ """ R"## # #????????? | | ?????????#"G """ """ """?# # """"""" #????????? | | ?????????#""" "" ## # " " #????????? | | ?????????#### ! ##?## # " """ " #????????? | | ????????????# #???# # " "!" " #????????? | +----------------------------------------------------+ Best States ------------- Heat Dissipation 70 Energy Generation 70 Energy Capacity 3700 Matter Stores 300 Matter Capacity 300 Sight Range 16 Robot Scan Range 30 Terrain Scan Density 10 Power Amplification 30 Additional Mass Support 10 Armor Coverage 1200 Resistance: KI 20 Power Shielding 66 Utility Shielding 66 Weapon Shielding 100 Point Defense Rating 240 Evasion (%) 62 Targeting Accuracy 8 Recoil Reduction 3 Particle Charging 15 Offensive Hacking 32 Item Schematics ----------------- Arc Thrower | -7/Zion | Free Battle Rifle | -7/Zion | Free Battle Cannon | -7/Zion | Free Slug Cannon | -7/Zion | Free Flamer | -7/Zion | Free Enh. Flamer | -7/Zion | Free Cmb. Airjet | -6/Extension | Hacked Centrium Medium Armor Plating | -5/Factory | Scanalyzed Lgt. Quantum Reactor | -3/Research | Hacked Hacking Suite | -3/Research | Hacked Adv. Hacking Suite | -3/Research | Hacked Gamma Bomb Array | -3/Quarantine | Hacked Robot Schematics ------------------ None Fabricated ------------ Neutron Cannon | x2 | -7/Factory | Preloaded Neutron Cannon | x2 | -7/Factory | Preloaded L-31 Rogue | x3 | -7/Factory | Preloaded L-31 Rogue | x3 | -7/Factory | Preloaded X-62 Marksman | x2 | -5/Factory | Preloaded Alien Tech Used ----------------- Stasis Generator Sigix Broadsword Achievements -------------- None Challenges ------------ None Game ------ Seed GuidedSwarmProtomatter Manual? 0 Play Time 03:20:24 Cumulative 303.1 hours Start 2020.06.02 @ 00:30:56 End 2020.06.02 @ 16:51:13 Sessions 9 Manual Loads 0 Difficulty Rogue Special Mode None Game No. 331 Rogue 331 Adventurer 0 Explorer 0 Win Type - Total 27 Types 16/3/2/1/2/0/3 Lore% 92 Gallery% 86 Achievement% 76 Wizard Run 0 Options --------- ASCII 0 Keyboard 0 Movement Arrows Keybinds 0 Fullscreen 2 Font 18/SmallcapsGlow Map View 76x50 Tactical HUD 1 Map Filters NONE Filters NONE Steam 1 RUN: 1157106c-3666-420f-8002-47f287232878